fUSD/lending_fUSD_20260612
["ID","MTS","AMOUNT","RATE_DAILY","PERIOD"]
[424922706,1781275655000,-515.96,9.197e-05,2]
[424922707,1781275708000,-150.38,9.219e-05,2]
[424922708,1781275762000,-264.28,9.237e-05,2]
[424922719,1781275763000,-632.5051238,9.277e-05,2]
[424922730,1781275763000,-500.0,9.277e-05,2]
[424922727,1781275763000,-500.0,9.277e-05,2]
[424922726,1781275763000,-604.41823352,9.277e-05,2]
[424922723,1781275763000,-500.0,9.277e-05,2]
[424922724,1781275763000,-361.21032862,9.277e-05,2]
[424922722,1781275763000,-500.0,9.277e-05,2]
[424922721,1781275763000,-500.0,9.277e-05,2]
[424922720,1781275763000,-500.0,9.277e-05,2]
[424922714,1781275763000,-500.0,9.277e-05,2]
[424922717,1781275763000,-500.0,9.277e-05,2]
[424922715,1781275763000,-256.53220928,9.277e-05,2]
[424922716,1781275763000,-500.0,9.277e-05,2]
[424922731,1781275763000,-500.0,9.277e-05,2]
[424922712,1781275763000,-500.0,9.277e-05,2]
[424922713,1781275763000,-616.27963198,9.277e-05,2]
[424922711,1781275763000,-396.94186674,9.277e-05,2]
[424922709,1781275763000,-150.0,9.277e-05,2]
[424922710,1781275763000,-218.4200657,9.277e-05,2]
[424922718,1781275763000,-500.0,9.277e-05,2]
[424922729,1781275763000,-500.0,9.277e-05,2]
[424922725,1781275763000,-500.44346536,9.277e-05,2]
[424922733,1781275763000,-500.0,9.277e-05,2]
[424922752,1781275763000,-500.0,9.277e-05,2]
[424922750,1781275763000,-500.0,9.277e-05,2]
[424922748,1781275763000,-547.29149246,9.277e-05,2]
[424922751,1781275763000,-500.0,9.277e-05,2]
[424922728,1781275763000,-336.08904582,9.277e-05,2]
[424922747,1781275763000,-500.0,9.277e-05,2]
[424922746,1781275763000,-500.0,9.277e-05,2]
[424922745,1781275763000,-500.0,9.277e-05,2]
[424922743,1781275763000,-500.0,9.277e-05,2]
[424922744,1781275763000,-500.0,9.277e-05,2]
[424922749,1781275763000,-500.0,9.277e-05,2]
[424922741,1781275763000,-500.0,9.277e-05,2]
[424922742,1781275763000,-500.0,9.277e-05,2]
[424922740,1781275763000,-500.0,9.277e-05,2]
[424922739,1781275763000,-500.0,9.277e-05,2]
[424922735,1781275763000,-500.0,9.277e-05,2]
[424922734,1781275763000,-500.0,9.277e-05,2]
[424922737,1781275763000,-500.0,9.277e-05,2]
[424922732,1781275763000,-500.0,9.277e-05,2]
[424922736,1781275763000,-500.0,9.277e-05,2]
[424922738,1781275763000,-500.0,9.277e-05,2]
[424922763,1781275764000,-500.0,9.277e-05,2]
[424922761,1781275764000,-500.0,9.277e-05,2]
[424922764,1781275764000,-500.0,9.277e-05,2]
[424922762,1781275764000,-500.0,9.277e-05,2]
[424922760,1781275764000,-500.0,9.277e-05,2]
[424922758,1781275764000,-243.48201134,9.277e-05,2]
[424922755,1781275764000,-500.0,9.277e-05,2]
[424922756,1781275764000,-500.0,9.277e-05,2]
[424922757,1781275764000,-500.0,9.277e-05,2]
[424922754,1781275764000,-500.0,9.277e-05,2]
[424922753,1781275764000,-500.0,9.277e-05,2]
[424922765,1781275764000,-500.0,9.277e-05,2]
[424922759,1781275764000,-500.0,9.277e-05,2]
[424922768,1781275764000,-500.0,9.277e-05,2]
[424922780,1781275764000,-500.0,9.277e-05,2]
[424922767,1781275764000,-500.0,9.277e-05,2]
[424922766,1781275764000,-500.0,9.277e-05,2]
[424922782,1781275764000,-500.0,9.277e-05,2]
[424922781,1781275764000,-500.0,9.277e-05,2]
[424922779,1781275764000,-275.87983618,9.277e-05,2]
[424922778,1781275764000,-224.12016382,9.277e-05,2]
[424922775,1781275764000,-500.0,9.277e-05,2]
[424922776,1781275764000,-500.0,9.277e-05,2]
[424922774,1781275764000,-500.0,9.277e-05,2]
[424922770,1781275764000,-500.0,9.277e-05,2]
[424922773,1781275764000,-500.0,9.277e-05,2]
[424922771,1781275764000,-500.0,9.277e-05,2]
[424922772,1781275764000,-500.0,9.277e-05,2]
[424922769,1781275764000,-500.0,9.277e-05,2]
[424922777,1781275764000,-500.0,9.277e-05,2]
[424922787,1781275765000,-1066.98634273,9.277e-05,2]
[424922783,1781275765000,-500.0,9.277e-05,2]
[424922786,1781275765000,-481.79458278,9.277e-05,2]
[424922784,1781275765000,-500.0,9.277e-05,2]
[424922790,1781275765000,-1066.98634273,9.277e-05,2]
[424922788,1781275765000,-1066.98634273,9.277e-05,2]
[424922789,1781275765000,-1066.98634273,9.277e-05,2]
[424922791,1781275765000,-585.89443609,9.277e-05,2]
[424922785,1781275765000,-500.0,9.277e-05,2]
[424922810,1781275766000,-1066.98634273,9.277e-05,2]
[424922809,1781275766000,-1066.98634273,9.277e-05,2]
[424922807,1781275766000,-1066.98634273,9.277e-05,2]
[424922808,1781275766000,-1066.98634273,9.277e-05,2]
[424922806,1781275766000,-1066.98634273,9.277e-05,2]
[424922803,1781275766000,-1066.98634273,9.277e-05,2]
[424922805,1781275766000,-1066.98634273,9.277e-05,2]
[424922804,1781275766000,-1066.98634273,9.277e-05,2]
[424922802,1781275766000,-1066.98634273,9.277e-05,2]
[424922799,1781275766000,-1066.98634273,9.277e-05,2]
[424922800,1781275766000,-1066.98634273,9.277e-05,2]
[424922797,1781275766000,-1066.98634273,9.277e-05,2]
[424922798,1781275766000,-1066.98634273,9.277e-05,2]
[424922795,1781275766000,-1066.98634273,9.277e-05,2]
[424922796,1781275766000,-1066.98634273,9.277e-05,2]
[424922794,1781275766000,-1066.98634273,9.277e-05,2]
[424922811,1781275766000,-1066.98634273,9.277e-05,2]
[424922801,1781275766000,-1066.98634273,9.277e-05,2]
[424922812,1781275766000,-1066.98634273,9.277e-05,2]
[424922792,1781275766000,-481.09190664,9.277e-05,2]
[424922814,1781275766000,-1066.98634273,9.277e-05,2]
[424922813,1781275766000,-1066.98634273,9.277e-05,2]
[424922832,1781275766000,-1024.30688903,9.277e-05,2]
[424922830,1781275766000,-1024.30688903,9.277e-05,2]
[424922831,1781275766000,-1024.30688903,9.277e-05,2]
[424922829,1781275766000,-1024.30688903,9.277e-05,2]
[424922828,1781275766000,-1024.30688903,9.277e-05,2]
[424922826,1781275766000,-1024.30688903,9.277e-05,2]
[424922827,1781275766000,-1024.30688903,9.277e-05,2]
[424922824,1781275766000,-1024.30688903,9.277e-05,2]
[424922793,1781275766000,-1066.98634273,9.277e-05,2]
[424922820,1781275766000,-1024.30688903,9.277e-05,2]
[424922822,1781275766000,-1024.30688903,9.277e-05,2]
[424922823,1781275766000,-1024.30688903,9.277e-05,2]
[424922821,1781275766000,-1024.30688903,9.277e-05,2]
[424922817,1781275766000,-1066.98634273,9.277e-05,2]
[424922818,1781275766000,-1066.98634273,9.277e-05,2]
[424922819,1781275766000,-1024.30688903,9.277e-05,2]
[424922825,1781275766000,-1024.30688903,9.277e-05,2]
[424922815,1781275766000,-1066.98634273,9.277e-05,2]
[424922816,1781275766000,-1066.98634273,9.277e-05,2]
[424922834,1781275767000,-300.0,9.278e-05,2]
[424922833,1781275767000,-1024.30688903,9.277e-05,2]
[424922835,1781275767000,-500.0,9.279e-05,2]
[424922838,1781275767000,-7873.69333472,9.28e-05,2]
[424922836,1781275767000,-636.86108165,9.279e-05,2]
[424922837,1781275767000,-1346.31666528,9.28e-05,2]
[424922840,1781275767000,-500.0,9.553e-05,2]
[424922841,1781275767000,-157.33036762,9.553e-05,2]
[424922843,1781275767000,-25451.44989766,9.697e-05,2]
[424922842,1781275767000,-1700.0,9.6e-05,3]
[424922839,1781275767000,-5225.0,9.331e-05,2]
[424922844,1781275768000,-28481.44192739,9.697e-05,2]
[424922847,1781275782000,-2721.87582176,9.697e-05,2]
[424922846,1781275782000,-3151.14875862,9.697e-05,2]
[424922845,1781275782000,-3151.14875862,9.697e-05,2]
[424922848,1781275797000,22904.55823706,9.501e-05,2]
[424922849,1781275797000,17798.44424294,9.501e-05,2]
[424922850,1781275816000,-8919.21432648,9.501e-05,2]
[424922852,1781275817000,-3331.6322254,9.501e-05,2]
[424922851,1781275817000,-3331.6322254,9.501e-05,2]
[424922853,1781275818000,-2610.99002309,9.501e-05,2]
[424922929,1781275836000,-2200.0,9.501e-05,2]
[424922931,1781275837000,-22253.57852981,9.501e-05,2]
[424922932,1781275837000,-300.0,9.599e-05,2]
[424922930,1781275837000,-320.0,9.228e-05,2]
[424922933,1781275837000,-1062327.14879666,9.697e-05,2]
[424922943,1781275837000,-970.82023645,9.697e-05,2]
[424922935,1781275837000,-36342.12206369,9.697e-05,2]
[424922936,1781275837000,-40162.32962966,9.697e-05,2]
[424922942,1781275837000,-957.13866201,9.697e-05,2]
[424922934,1781275837000,-20945.61816954,9.697e-05,2]
[424924305,1781275856000,-2200.0,9.697e-05,2]
[424924648,1781275875000,-501.76688914,9.697e-05,2]
[424924649,1781275875000,-1593.56955998,9.697e-05,2]
[424924647,1781275875000,-2965.07130327,9.697e-05,2]
[424924646,1781275875000,-561.59219213,9.697e-05,2]
[424924644,1781275875000,-1904.0320705,9.697e-05,2]
[424924645,1781275875000,-2174.72423765,9.697e-05,2]
[424924650,1781275876000,-8919.21432648,9.697e-05,2]
[424924651,1781275895000,-241.109846,9.648e-05,2]
[424924652,1781275948000,-159.28,9.319e-05,2]
[424924654,1781276002000,-1969.5,9.597e-05,2]
[424924657,1781276153000,-166.66,9.279e-05,2]
[424924658,1781276207000,-1491.64477388,8.97e-05,2]
[424924660,1781276228000,-317.19522612,8.97e-05,2]
[424924661,1781276280000,-1000.0,8.984e-05,2]
[424924663,1781276333000,-200.0,9.593e-05,2]
[424924664,1781276387000,-357.09088432,9.595e-05,2]
[424924665,1781276440000,-300.0,9.594e-05,2]
[424924667,1781276493000,-194.90299181,9.279e-05,2]
[424924669,1781276547000,-205.57323299,9.279e-05,2]
[424924671,1781276600000,-205.57323298,9.279e-05,2]
[424924674,1781276730000,-265.31865506,8.908e-05,2]
[424924673,1781276730000,-257.85,8.9e-05,2]
[424924675,1781276813000,-299.64858955,8.908e-05,2]
[424924677,1781276826000,-500.0,8.908e-05,2]
[424924678,1781276826000,-159.48247902,8.915e-05,2]
[424924676,1781276826000,-300.0,8.908e-05,2]
[424924679,1781276844000,-33.51752098,8.915e-05,2]
[424924680,1781276844000,-520.62831449,8.931e-05,2]
[424924681,1781276846000,-158.17302254,8.931e-05,2]
[424924682,1781276868000,-174.49866297,8.931e-05,2]
[424924683,1781276921000,-538.02332496,8.806e-05,2]
[424924684,1781276942000,-538.02332496,8.759e-05,2]
[424924685,1781276961000,-461.97667504,8.759e-05,2]
[424924688,1781276962000,-23.99315781,8.942e-05,2]
[424924686,1781276962000,-909.04667504,8.806e-05,2]
[424924687,1781276962000,-249.96361902,8.942e-05,2]
[424924689,1781276965000,-376.49775703,8.942e-05,2]
[424924690,1781276965000,-199.53614746,8.942e-05,2]
[424924692,1781276965000,-419.46913193,8.942e-05,2]
[424924700,1781276965000,-174.96,9.125e-05,2]
[424924694,1781276965000,-500.0,8.942e-05,2]
[424924693,1781276965000,-231.06812598,8.942e-05,2]
[424924695,1781276965000,-1469.31,8.944e-05,2]
[424924697,1781276965000,-500.0,8.951e-05,2]
[424924696,1781276965000,-300.0,8.951e-05,2]
[424924698,1781276965000,-500.0,8.951e-05,2]
[424924691,1781276965000,-500.0,8.942e-05,2]
[424924699,1781276965000,-193.98753391,9.066e-05,2]
[424924703,1781276965000,-281.0,9.277e-05,2]
[424924701,1781276965000,-329.4939,9.179e-05,2]
[424924705,1781276965000,-168.6510504,9.279e-05,2]
[424924704,1781276965000,-168.65105039,9.279e-05,2]
[424924706,1781276965000,-159.25861799,9.279e-05,2]
[424924707,1781276965000,-500.0,9.49e-05,2]
[424924708,1781276965000,-8919.2144,9.51e-05,2]
[424924709,1781276965000,-1884.4607,9.51e-05,2]
[424924710,1781276965000,-2500.0,9.51e-05,2]
[424924711,1781276965000,-17689.84436491,9.51e-05,2]
[424924702,1781276965000,-500.0,9.216e-05,2]
[424924713,1781276968000,-3396.24376775,9.51e-05,2]
[424924714,1781276968000,-3396.24376775,9.51e-05,2]
[424924712,1781276968000,-903.43982899,9.51e-05,2]
[424924715,1781276993000,-3532.09351846,9.51e-05,2]
[424924717,1781276993000,-709.9754178,9.51e-05,2]
[424924716,1781276993000,-3532.09351846,9.51e-05,2]
[424924718,1781277014000,-1969.5,9.51e-05,2]
[424924730,1781277036000,-3687.57676756,9.51e-05,2]
[424924731,1781277036000,-1325.51333324,9.51e-05,2]
[424924729,1781277036000,-1969.5,9.51e-05,2]
[424924732,1781277037000,-349.90206,9.51e-05,2]
[424924734,1781277038000,-140425.25625185,9.51e-05,2]
[424924736,1781277038000,-53770.35733794,9.51e-05,2]
[424924735,1781277038000,-49085.52543771,9.51e-05,2]
[424924733,1781277038000,-3053.69999636,9.51e-05,2]
[424924866,1781277055000,-511.24807431,8.71e-05,2]
[424924867,1781277055000,-855.09715181,9.51e-05,2]
[424924870,1781277057000,-864.628535,9.51e-05,2]
[424924868,1781277057000,-529.59717687,8.71e-05,2]
[424924869,1781277057000,-2146.71606259,9.51e-05,2]
[424924873,1781277057000,-3594.01043236,9.51e-05,2]
[424924871,1781277057000,-1161.91779097,9.51e-05,2]
[424924875,1781277057000,-500.0,9.51e-05,2]
[424924872,1781277057000,-106.60916433,9.51e-05,2]
[424924876,1781277057000,-402.26511766,9.51e-05,2]
[424924877,1781277057000,-3476.58091597,9.51e-05,2]
[424924874,1781277057000,-519.28369525,9.51e-05,2]
[424924878,1781277076000,-3000.0,9.51e-05,2]
[424924879,1781277076000,-16677.59170511,9.51e-05,2]
[424924881,1781277076000,-1298.99566407,9.51e-05,2]
[424924882,1781277076000,-42479.09873632,9.51e-05,2]
[424924880,1781277076000,-5114.58816194,9.51e-05,2]
[424924886,1781277077000,-1883.97693439,9.51e-05,2]
[424924885,1781277077000,-17.57478028,9.51e-05,2]
[424924883,1781277077000,-4220.74999616,9.51e-05,2]
[424924884,1781277077000,-390.84371087,9.51e-05,2]
[424924887,1781277095000,-538.02332496,9.51e-05,2]
[424924889,1781277096000,-387.02332496,9.509e-05,2]
[424924888,1781277096000,-151.0,9.507e-05,2]
[424924891,1781277161000,180.04667535,8.449e-05,7]
[424924896,1781277283000,-150.0,8.449e-05,2]
[424924897,1781277337000,-300.0,8.471e-05,2]
[424924898,1781277392000,-364.7321531,8.494e-05,2]
[424924899,1781277411000,-107.69455053,8.494e-05,2]
[424924900,1781277414000,-221.083489,8.494e-05,2]
[424924902,1781277437000,-371.663835,8.671e-05,2]
[424924904,1781277437000,-152.89404599,8.697e-05,2]
[424924903,1781277437000,-250.0,8.684e-05,2]
[424924905,1781277437000,-174.97453331,8.697e-05,2]
[424924907,1781277437000,-481.78767176,8.697e-05,2]
[424924908,1781277437000,-394.14349916,8.697e-05,2]
[424924906,1781277437000,-676.51215587,8.697e-05,2]
[424924910,1781277437000,-676.51215587,8.697e-05,2]
[424924901,1781277437000,-261.92,8.671e-05,2]
[424924911,1781277437000,-676.51215587,8.697e-05,2]
[424924909,1781277437000,-676.51215587,8.697e-05,2]
[424924917,1781277437000,-676.51215587,8.697e-05,2]
[424924915,1781277437000,-676.51215587,8.697e-05,2]
[424924918,1781277437000,-676.51215587,8.697e-05,2]
[424924913,1781277437000,-676.51215587,8.697e-05,2]
[424924916,1781277437000,-676.51215587,8.697e-05,2]
[424924912,1781277437000,-676.51215587,8.697e-05,2]
[424924914,1781277437000,-676.51215587,8.697e-05,2]
[424924936,1781277438000,-676.51215587,8.697e-05,2]
[424924926,1781277438000,-676.51215587,8.697e-05,2]
[424924934,1781277438000,-676.51215587,8.697e-05,2]
[424924932,1781277438000,-676.51215587,8.697e-05,2]
[424924933,1781277438000,-676.51215587,8.697e-05,2]
[424924931,1781277438000,-676.51215587,8.697e-05,2]
[424924930,1781277438000,-676.51215587,8.697e-05,2]
[424924927,1781277438000,-676.51215587,8.697e-05,2]
[424924924,1781277438000,-676.51215587,8.697e-05,2]
[424924928,1781277438000,-676.51215587,8.697e-05,2]
[424924923,1781277438000,-676.51215587,8.697e-05,2]
[424924925,1781277438000,-676.51215587,8.697e-05,2]
[424924922,1781277438000,-676.51215587,8.697e-05,2]
[424924920,1781277438000,-676.51215587,8.697e-05,2]
[424924921,1781277438000,-676.51215587,8.697e-05,2]
[424924919,1781277438000,-676.51215587,8.697e-05,2]
[424924937,1781277438000,-676.51215587,8.697e-05,2]
[424924929,1781277438000,-676.51215587,8.697e-05,2]
[424924935,1781277438000,-676.51215587,8.697e-05,2]
[424924945,1781277438000,-676.51215587,8.697e-05,2]
[424924941,1781277438000,-676.51215587,8.697e-05,2]
[424924958,1781277438000,-666.8476965,8.697e-05,2]
[424924957,1781277438000,-666.8476965,8.697e-05,2]
[424924954,1781277438000,-666.8476965,8.697e-05,2]
[424924955,1781277438000,-666.8476965,8.697e-05,2]
[424924956,1781277438000,-666.8476965,8.697e-05,2]
[424924940,1781277438000,-676.51215587,8.697e-05,2]
[424924951,1781277438000,-676.51215587,8.697e-05,2]
[424924953,1781277438000,-666.8476965,8.697e-05,2]
[424924952,1781277438000,-666.8476965,8.697e-05,2]
[424924950,1781277438000,-676.51215587,8.697e-05,2]
[424924946,1781277438000,-676.51215587,8.697e-05,2]
[424924949,1781277438000,-676.51215587,8.697e-05,2]
[424924938,1781277438000,-676.51215587,8.697e-05,2]
[424924942,1781277438000,-676.51215587,8.697e-05,2]
[424924944,1781277438000,-676.51215587,8.697e-05,2]
[424924939,1781277438000,-676.51215587,8.697e-05,2]
[424924943,1781277438000,-676.51215587,8.697e-05,2]
[424924947,1781277438000,-676.51215587,8.697e-05,2]
[424924948,1781277438000,-676.51215587,8.697e-05,2]
[424924960,1781277439000,-666.8476965,8.697e-05,2]
[424924961,1781277439000,-666.8476965,8.697e-05,2]
[424924959,1781277439000,-666.8476965,8.697e-05,2]
[424924962,1781277439000,-666.8476965,8.697e-05,2]
[424924963,1781277439000,-666.8476965,8.697e-05,2]
[424924964,1781277439000,-666.8476965,8.697e-05,2]
[424924965,1781277439000,-666.8476965,8.697e-05,2]
[424924966,1781277439000,-666.8476965,8.697e-05,2]
[424924967,1781277439000,-666.8476965,8.697e-05,2]
[424924972,1781277439000,-666.8476965,8.697e-05,2]
[424924969,1781277439000,-666.8476965,8.697e-05,2]
[424924970,1781277439000,-666.8476965,8.697e-05,2]
[424924971,1781277439000,-666.8476965,8.697e-05,2]
[424924977,1781277439000,-666.8476965,8.697e-05,2]
[424924973,1781277439000,-666.8476965,8.697e-05,2]
[424924975,1781277439000,-666.8476965,8.697e-05,2]
[424924974,1781277439000,-666.8476965,8.697e-05,2]
[424924976,1781277439000,-666.8476965,8.697e-05,2]
[424924978,1781277439000,-586.9579585,8.697e-05,2]
[424924968,1781277439000,-666.8476965,8.697e-05,2]
[424924979,1781277464000,-500.0,8.697e-05,2]
[424924980,1781277468000,-79.889738,8.697e-05,2]
[424924981,1781277468000,-666.8476965,8.697e-05,2]
[424924984,1781277468000,-666.8476965,8.697e-05,2]
[424924982,1781277468000,-666.8476965,8.697e-05,2]
[424924983,1781277468000,-666.8476965,8.697e-05,2]
[424924985,1781277468000,-666.8476965,8.697e-05,2]
[424924987,1781277468000,-672.90994827,8.697e-05,2]
[424924986,1781277468000,-672.90994827,8.697e-05,2]
[424924990,1781277468000,-672.90994827,8.697e-05,2]
[424924991,1781277468000,-672.90994827,8.697e-05,2]
[424924989,1781277468000,-672.90994827,8.697e-05,2]
[424924992,1781277468000,-672.90994827,8.697e-05,2]
[424924993,1781277468000,-672.90994827,8.697e-05,2]
[424924994,1781277468000,-672.90994827,8.697e-05,2]
[424924995,1781277468000,-672.90994827,8.697e-05,2]
[424924997,1781277468000,-38648.86,8.698e-05,2]
[424924988,1781277468000,-672.90994827,8.697e-05,2]
[424924996,1781277468000,-672.90994827,8.697e-05,2]
[424924998,1781277487000,-449.45067289,8.709e-05,2]
[424925000,1781277489000,-235.00234853,8.971e-05,2]
[424924999,1781277489000,-300.0,8.84e-05,2]
[424925006,1781277510000,-498.2112919,9.318e-05,2]
[424925003,1781277510000,-264.99765147,8.971e-05,2]
[424925005,1781277510000,-300.0,9.294e-05,2]
[424925001,1781277510000,-193.3194991,8.84e-05,2]
[424925002,1781277510000,-263.77887318,8.905e-05,2]
[424925004,1781277510000,-500.0,9.245e-05,2]
[424925014,1781277510000,-25311.89273591,9.5e-05,2]
[424925007,1781277510000,-413.90256807,9.318e-05,2]
[424925011,1781277510000,-201.70776909,9.39e-05,2]
[424925010,1781277510000,-500.0,9.39e-05,2]
[424925009,1781277510000,-500.0,9.39e-05,2]
[424925013,1781277510000,-20247.0154849,9.444e-05,2]
[424925012,1781277510000,-505.17412638,9.419e-05,2]
[424925008,1781277510000,-300.0,9.343e-05,2]
[424925015,1781277539000,-1499.59469168,9.5e-05,2]
[424925017,1781277560000,-50000.0,9.5e-05,2]
[424925016,1781277560000,-1499.59469168,9.5e-05,2]
[424925019,1781277580000,-109.33113043,9.5e-05,2]
[424925018,1781277580000,-890.66886957,9.491e-05,2]
[424925020,1781277601000,-1000.0,9.5e-05,2]
[424925021,1781277700000,-406.8,9.033e-05,2]
[424925022,1781277700000,-1353.59,9.033e-05,2]
[424925025,1781277700000,-500.0,9.499e-05,2]
[424925024,1781277700000,-150.0,9.499e-05,2]
[424925023,1781277700000,-169.86,9.374e-05,2]
[424925027,1781277701000,-500.0,9.499e-05,2]
[424925026,1781277701000,-500.0,9.499e-05,2]
[424925028,1781277701000,-500.0,9.499e-05,2]
[424925031,1781277701000,-500.0,9.499e-05,2]
[424925029,1781277701000,-500.0,9.499e-05,2]
[424925030,1781277701000,-500.0,9.499e-05,2]
[424925032,1781277701000,-500.0,9.499e-05,2]
[424925039,1781277701000,-500.0,9.499e-05,2]
[424925035,1781277701000,-500.0,9.499e-05,2]
[424925041,1781277701000,-190.55949143,9.499e-05,2]
[424925040,1781277701000,-229.19050857,9.499e-05,2]
[424925038,1781277701000,-500.0,9.499e-05,2]
[424925033,1781277701000,-500.0,9.499e-05,2]
[424925036,1781277701000,-500.0,9.499e-05,2]
[424925034,1781277701000,-500.0,9.499e-05,2]
[424925037,1781277701000,-500.0,9.499e-05,2]
[424925042,1781277718000,-309.44050857,9.499e-05,2]
[424925043,1781277718000,-9690.55949143,9.5e-05,2]
[424925047,1781277784000,152.0,8.508e-05,7]
[424925046,1781277784000,152.0,8.508e-05,7]
[424925045,1781277784000,-158.94,8.961e-05,2]
[424925048,1781277838000,-628.24,8.927e-05,2]
[424925049,1781277891000,-1000.0,8.984e-05,2]
[424925052,1781277892000,-414.35450095,9.499e-05,2]
[424925051,1781277892000,-500.0,9.499e-05,2]
[424925050,1781277892000,-150.0,9.499e-05,2]
[424925053,1781277892000,-8935.64549905,9.5e-05,2]
[424925054,1781277898000,-10000.0,9.5e-05,2]
[424925055,1781277899000,-10000.0,9.5e-05,2]
[424925056,1781277900000,-10000.0,9.5e-05,2]
[424925057,1781277902000,-10000.0,9.5e-05,2]
[424925058,1781277906000,-10000.0,9.5e-05,2]
[424925059,1781277909000,-10000.0,9.5e-05,2]
[424925060,1781277910000,-10000.0,9.5e-05,2]
[424925061,1781277916000,248.76467157,9.803e-05,7]
[424925064,1781277944000,-1000.0,9.5e-05,2]
[424925065,1781277966000,-2685.45525733,9.5e-05,2]
[424925066,1781277967000,-1014.1049555,9.5e-05,2]
[424925067,1781277967000,152.0,8.452e-05,7]
[424925068,1781277987000,-300.0,9.297e-05,2]
[424925069,1781277988000,-153.5608307,9.5e-05,2]
[424925070,1781277992000,822.2416,9.399e-05,2]
[424925073,1781278000000,-127.9253253,9.507e-05,2]
[424925072,1781278000000,-250.0,9.502e-05,2]
[424925071,1781278000000,-646.272244,9.502e-05,2]
[424925075,1781278040000,-412.3653525,8.71e-05,2]
[424925076,1781278041000,-180.0,9.2e-05,2]
[424925078,1781278072000,-217.89484381,9.2e-05,2]
[424925079,1781278072000,-23.0746747,9.507e-05,2]
[424925092,1781278073000,-167.96413198,9.51e-05,2]
[424925087,1781278073000,-284.60259319,9.51e-05,2]
[424925090,1781278073000,-176.562112,9.51e-05,2]
[424925093,1781278073000,-167.96413198,9.51e-05,2]
[424925088,1781278073000,-245.19472552,9.51e-05,2]
[424925089,1781278073000,-1433.43741035,9.51e-05,2]
[424925081,1781278073000,-160.0,9.509e-05,2]
[424925084,1781278073000,-186.62681331,9.51e-05,2]
[424925085,1781278073000,-186.62681331,9.51e-05,2]
[424925083,1781278073000,-196.18012445,9.51e-05,2]
[424925082,1781278073000,-150.0,9.509e-05,2]
[424925080,1781278073000,-1000.0,9.509e-05,2]
[424925091,1781278073000,-176.56211201,9.51e-05,2]
[424925094,1781278073000,-170.62314522,9.51e-05,2]
[424925086,1781278073000,-168.94337459,9.51e-05,2]
[424925095,1781278073000,-255.92040605,9.51e-05,2]
[424925109,1781278073000,-38739.65686345,9.71e-05,2]
[424925108,1781278073000,-1000.0,9.709e-05,2]
[424925106,1781278073000,-150.0,9.611e-05,2]
[424925107,1781278073000,-150.0,9.698e-05,2]
[424925104,1781278073000,-293.36566713,9.607e-05,2]
[424925102,1781278073000,-500.0,9.581e-05,2]
[424925105,1781278073000,-151.0,9.607e-05,2]
[424925099,1781278073000,-300.0,9.581e-05,2]
[424925100,1781278073000,-312.67275098,9.581e-05,2]
[424925101,1781278073000,-367.15873274,9.581e-05,2]
[424925098,1781278073000,-174.001801,9.58e-05,2]
[424925096,1781278073000,-2169.96497123,9.51e-05,2]
[424925103,1781278073000,-150.0,9.603e-05,2]
[424925097,1781278073000,-174.001801,9.58e-05,2]
[424925110,1781278094000,-160.0,9.513e-05,2]
[424925111,1781278094000,-18260.0,9.71e-05,2]
[424925112,1781278147000,-171.93780308,9.499e-05,2]
[424925115,1781278160000,-91.1418,9.499e-05,2]
[424925113,1781278160000,-500.0,9.499e-05,2]
[424925114,1781278160000,-500.0,9.499e-05,2]
[424925116,1781278161000,-358.7192,9.499e-05,2]
[424925117,1781278201000,-795.0298741,9.281e-05,2]
[424925152,1781278232000,-500.0,9.709e-05,2]
[424925155,1781278232000,-500.0,9.709e-05,2]
[424925153,1781278232000,-500.0,9.709e-05,2]
[424925154,1781278232000,-500.0,9.709e-05,2]
[424925156,1781278232000,-500.0,9.709e-05,2]
[424925157,1781278232000,-500.0,9.709e-05,2]
[424925159,1781278232000,-500.0,9.709e-05,2]
[424925169,1781278232000,-500.0,9.709e-05,2]
[424925158,1781278232000,-578.29671441,9.709e-05,2]
[424925160,1781278232000,-500.0,9.709e-05,2]
[424925172,1781278232000,-500.0,9.709e-05,2]
[424925163,1781278232000,-500.0,9.709e-05,2]
[424925162,1781278232000,-500.0,9.709e-05,2]
[424925167,1781278232000,-500.0,9.709e-05,2]
[424925168,1781278232000,-500.0,9.709e-05,2]
[424925166,1781278232000,-500.0,9.709e-05,2]
[424925165,1781278232000,-500.0,9.709e-05,2]
[424925164,1781278232000,-500.0,9.709e-05,2]
[424925171,1781278232000,-500.0,9.709e-05,2]
[424925170,1781278232000,-500.0,9.709e-05,2]
[424925149,1781278232000,-500.0,9.709e-05,2]
[424925161,1781278232000,-500.0,9.709e-05,2]
[424925150,1781278232000,-500.0,9.709e-05,2]
[424925141,1781278232000,-500.0,9.709e-05,2]
[424925148,1781278232000,-500.0,9.709e-05,2]